fUST/lending_fUST_20250212
["ID","MTS","AMOUNT","RATE_DAILY","PERIOD"]
[352802977,1739329839918,-1663.98,0.00014079,2]
[352802978,1739329839927,-6624.94,0.00014079,2]
[352802979,1739329839938,-5361.65,0.00014079,2]
[352802980,1739329839947,-500.0,0.0001408,2]
[352802981,1739329839957,-1576.22,0.00014081,2]
[352802982,1739329839966,-500.0,0.00014216,2]
[352802983,1739329839975,-500.0,0.00014216,2]
[352802984,1739329839986,-370.63588472,0.00014216,2]
[352802985,1739329839995,-510.82170296,0.00014216,2]
[352802986,1739329840006,-500.0,0.00014216,2]
[352802987,1739329840015,-500.0,0.00014216,2]
[352802988,1739329840025,-500.0,0.00014216,2]
[352802989,1739329840035,-151.0,0.00014216,2]
[352802990,1739329840047,-500.0,0.00014216,2]
[352802991,1739329840057,-500.0,0.00014216,2]
[352802992,1739329840068,-500.0,0.00014216,2]
[352802993,1739329840076,-500.0,0.00014216,2]
[352802994,1739329840085,-627.64,0.00014216,2]
[352802995,1739329840097,-500.0,0.00014216,2]
[352802996,1739329840106,-1663.98,0.00014216,2]
[352802997,1739329840116,-6624.94,0.00014216,2]
[352802998,1739329840127,-5361.65,0.00014216,2]
[352802999,1739329840137,-500.0,0.00014217,2]
[352803000,1739329840147,-1576.22,0.00014218,2]
[352803001,1739329840157,-151.0,0.00014218,2]
[352803002,1739329840166,-221.88385413,0.00014228,2]
[352803003,1739329840175,-196.81838983,0.00014249,2]
[352803004,1739329840185,-482.30021553,0.00014345,2]
[352803005,1739329840195,-500.0,0.00014353,2]
[352803006,1739329840206,-500.0,0.00014353,2]
[352803007,1739329840215,-500.0,0.00014353,2]
[352803008,1739329840225,-500.0,0.00014353,2]
[352803009,1739329840238,-493.58247474,0.00014353,2]
[352803010,1739329840248,-285.55418389,0.00014353,2]
[352803011,1739329840258,-500.0,0.00014353,2]
[352803012,1739329840268,-500.0,0.00014353,2]
[352803013,1739329840278,-500.0,0.00014353,2]
[352803014,1739329840289,-627.64,0.00014353,2]
[352803015,1739329840304,-500.0,0.00014353,2]
[352803017,1739329840318,-1663.98,0.00014353,2]
[352803018,1739329840332,-6624.94,0.00014353,2]
[352803019,1739329840346,-5361.65,0.00014353,2]
[352803020,1739329840360,-500.0,0.00014354,2]
[352803022,1739329840371,-1576.22,0.00014355,2]
[352803023,1739329840383,-151.0,0.00014355,2]
[352803024,1739329840397,-718.21462794,0.00014401,2]
[352803025,1739329840409,-1000.0,0.00014406,2]
[352803026,1739329840421,-500.0,0.0001449,2]
[352803027,1739329840433,-500.0,0.0001449,2]
[352803028,1739329840447,-500.0,0.0001449,2]
[352803029,1739329840461,-500.0,0.0001449,2]
[352803030,1739329840474,-500.0,0.0001449,2]
[352803031,1739329840489,-500.0,0.0001449,2]
[352803032,1739329840502,-500.0,0.0001449,2]
[352803033,1739329840515,-627.64,0.0001449,2]
[352803034,1739329840528,-500.0,0.0001449,2]
[352803035,1739329840541,-1663.98,0.0001449,2]
[352803036,1739329840554,-259.81605889,0.0001449,2]
[352803037,1739329840844,-605.00115942,0.0001449,2]
[352803038,1739329840858,-5760.12278169,0.0001449,2]
[352803039,1739329840871,-3784.79776612,0.0001449,2]
[352803040,1739329840887,-1576.85223388,0.0001449,2]
[352803041,1739329840899,-633.53689162,0.00014491,2]
[352803042,1739329840911,-1576.22,0.00014492,2]
[352803043,1739329840921,-151.0,0.00014492,2]
[352803044,1739329840932,-361.56901104,0.000145,5]
[352803045,1739329840943,-7135.0,0.000145,2]
[352803046,1739329840954,-1000.0,0.00014501,2]
[352803047,1739329840964,-361.3338,0.00014564,2]
[352803048,1739329840975,-300.0,0.000146,5]
[352803049,1739329840989,-398.01307043,0.00014618,2]
[352803050,1739329841001,-500.0,0.00014627,2]
[352803051,1739329841012,-500.0,0.00014627,2]
[352803052,1739329841023,-500.0,0.00014627,2]
[352803053,1739329841034,-500.0,0.00014627,2]
[352803054,1739329841047,-500.0,0.00014627,2]
[352803055,1739329841058,-500.0,0.00014627,2]
[352803056,1739329841069,-500.0,0.00014627,2]
[352803057,1739329841082,-627.64,0.00014627,2]
[352803058,1739329841093,-500.0,0.00014627,2]
[352803059,1739329841105,-1663.98,0.00014627,2]
[352803060,1739329841118,-6624.94,0.00014627,2]
[352803061,1739329841130,-5361.65,0.00014627,2]
[352803062,1739329841141,-151.0,0.00014628,2]
[352803063,1739329841153,-1576.22,0.00014629,2]
[352803064,1739329841164,-162.568969,0.000147,4]
[352803065,1739329841174,-500.0,0.00014764,2]
[352803066,1739329841186,-500.0,0.00014764,2]
[352803067,1739329841197,-500.0,0.00014764,2]
[352803068,1739329841209,-500.0,0.00014764,2]
[352803069,1739329841219,-500.0,0.00014764,2]
[352803070,1739329841230,-500.0,0.00014764,2]
[352803071,1739329841241,-500.0,0.00014764,2]
[352803072,1739329841252,-627.64,0.00014764,2]
[352803073,1739329841264,-500.0,0.00014764,2]
[352803074,1739329841275,-1663.98,0.00014764,2]
[352803075,1739329841287,-6624.94,0.00014764,2]
[352803076,1739329841298,-5361.65,0.00014764,2]
[352803077,1739329841310,-1576.22,0.00014766,2]
[352803078,1739329841321,-420.0,0.0001483,2]
[352803079,1739329841332,-718.21462794,0.00014885,2]
[352803080,1739329841343,-3006.27233278,0.000149,2]
[352803081,1739329841354,-151.0,0.000149,2]
[352803082,1739329841366,-196.81838983,0.000149,2]
[352803083,1739329841378,-500.0,0.00014901,2]
[352803084,1739329841389,-500.0,0.00014901,2]
[352803085,1739329841400,-500.0,0.00014901,2]
[352803086,1739329841412,-500.0,0.00014901,2]
[352803087,1739329841424,-500.0,0.00014901,2]
[352803088,1739329841436,-500.0,0.00014901,2]
[352803089,1739329841449,-500.0,0.00014901,2]
[352803090,1739329841460,-627.64,0.00014901,2]
[352803091,1739329841471,-500.0,0.00014901,2]
[352803092,1739329841481,-6624.94,0.00014901,2]
[352803093,1739329841491,-1663.98,0.00014901,2]
[352803094,1739329841501,-5361.65,0.00014901,2]
[352803095,1739329841512,-811.93370924,0.00014902,5]
[352803096,1739329841521,-1576.22,0.00014903,2]
[352803097,1739329841531,-2266.94970986,0.00014966,2]
[352803098,1739329841541,-63308.42725438,0.00014999,2]
[352803099,1739329841698,-4885.63970391,0.00014999,2]
[352803180,1739329843251,-38316.85591922,0.00014999,2]
[352803186,1739329843303,-2634.85811021,0.00014999,2]
[352803215,1739329846288,-6059.204464,0.00014999,2]
[352803249,1739330102847,1514.03,0.00010959,2]
[352803250,1739330113302,2505.62,0.00010959,2]
[352803251,1739330123794,2088.02,0.00010959,2]
[352803252,1739330155748,1740.01,0.00010959,2]
[352803253,1739330166299,1450.01,0.00010959,2]
[352803254,1739330176855,1208.34,0.00010959,2]
[352803255,1739330187408,1006.95,0.00010959,2]
[352803256,1739330198031,839.13,0.00010959,2]
[352803257,1739330208644,699.27,0.00010959,2]
[352803258,1739330219173,582.73,0.00010959,2]
[352803259,1739330229903,485.61,0.00010959,2]
[352803261,1739330240476,404.67,0.00010959,2]
[352803262,1739330251025,337.23,0.00010959,2]
[352803263,1739330261661,281.02,0.00010959,2]
[352803264,1739330272445,234.18,0.00010959,2]
[352803265,1739330282993,195.15,0.00010959,2]
[352803266,1739330293575,162.63,0.00010959,2]
[352803267,1739330304121,813.17,0.00010959,2]
[352803268,1739330486424,200.0,0.00011,2]
[352803269,1739330505689,200.0,0.00011,6]
[352803270,1739330523144,200.0,0.00011,5]
[352803271,1739330651553,-700.0,0.00016192,60]
[352803272,1739330730140,-519.83410016,0.00013429,2]
[352803274,1739330840095,-66.51855613,0.00013429,2]
[352803275,1739330840116,-210.48857038,0.0001343,2]
[352803276,1739330840136,-210.48857037,0.00013464,2]
[352803277,1739330840157,-210.48857037,0.00013499,2]
[352803278,1739330840178,-8913.9647575,0.00013525,2]
[352803279,1739330840199,-300.0,0.00013527,2]
[352803280,1739330840221,-320.25105961,0.00013528,2]
[352803287,1739330976231,400.0,0.00010685,2]
[352803315,1739331032380,-600.0,0.00013287,2]
[352803316,1739331032390,-210.48857037,0.00013429,2]
[352803317,1739331032400,-300.0,0.00013527,2]
[352803318,1739331032411,-501.11731586,0.00013527,2]
[352803319,1739331032420,-500.0,0.00013527,2]
[352803320,1739331032430,-1226.8132749,0.00013528,2]
[352803321,1739331032444,-746.2867251,0.00013528,2]
[352803322,1739331032458,-500.0,0.00013528,2]
[352803323,1739331032467,-501.05445124,0.00013528,2]
[352803324,1739331032476,-500.0,0.00013528,2]
[352803325,1739331032489,-500.0,0.00013528,2]
[352803326,1739331032499,-736.87,0.00013528,2]
[352803328,1739331032508,-500.0,0.00013528,2]
[352803330,1739331032518,-500.0,0.00013528,2]
[352803331,1739331032531,-500.0,0.00013528,2]
[352803332,1739331032541,-500.0,0.00013528,2]
[352803333,1739331032551,-500.93381426,0.00013528,2]
[352803334,1739331032560,-500.0,0.00013528,2]
[352803335,1739331032569,-500.0,0.00013528,2]
[352803336,1739331032579,-500.0,0.00013528,2]
[352803337,1739331032589,-500.0,0.00013528,2]
[352803338,1739331032599,-500.0,0.00013528,2]
[352803339,1739331032608,-500.0,0.00013528,2]
[352803340,1739331032618,-500.8547224,0.00013528,2]
[352803341,1739331032627,-500.0,0.00013528,2]
[352803342,1739331032636,-500.0,0.00013528,2]
[352803343,1739331032646,-500.0,0.00013528,2]
[352803344,1739331032655,-500.0,0.00013528,2]
[352803345,1739331032665,-500.0,0.00013528,2]
[352803346,1739331032674,-500.0,0.00013528,2]
[352803347,1739331032683,-603.04401491,0.00013528,2]
[352803348,1739331032692,-500.0,0.00013528,2]
[352803349,1739331032701,-500.0,0.00013528,2]
[352803350,1739331032711,-500.0,0.00013528,2]
[352803351,1739331032720,-500.0,0.00013528,2]
[352803352,1739331032730,-500.0,0.00013528,2]
[352803353,1739331032742,-358.09309605,0.00013528,2]
[352803354,1739331032751,-500.0,0.00013528,2]
[352803355,1739331032761,-500.0,0.00013528,2]
[352803356,1739331032771,-500.0,0.00013528,2]
[352803357,1739331032780,-511.18168321,0.00013528,2]
[352803358,1739331032790,-500.0,0.00013528,2]
[352803359,1739331032799,-500.0,0.00013528,2]
[352803360,1739331032809,-500.0,0.00013528,2]
[352803361,1739331032818,-500.0,0.00013528,2]
[352803362,1739331032828,-500.0,0.00013528,2]
[352803363,1739331032838,-500.0,0.00013528,2]
[352803364,1739331032847,-500.0,0.00013528,2]
[352803365,1739331032859,-8513.71,0.00013528,2]
[352803366,1739331032869,-500.0,0.00013528,2]
[352803367,1739331032878,-500.0,0.00013528,2]
[352803368,1739331032888,-500.0,0.00013528,2]
[352803369,1739331032897,-500.0,0.00013528,2]
[352803370,1739331032907,-500.0,0.00013528,2]
[352803371,1739331032916,-8513.71,0.00013528,2]
[352803372,1739331032926,-500.0,0.00013528,2]
[352803373,1739331032936,-505.98232423,0.00013528,2]
[352803374,1739331032945,-500.0,0.00013528,2]
[352803375,1739331032955,-501.64155412,0.00013528,2]
[352803376,1739331032964,-511.16,0.00013528,2]
[352803377,1739331032974,-500.0,0.00013528,2]
[352803378,1739331032984,-500.0,0.00013528,2]
[352803379,1739331032997,-500.0,0.00013528,2]
[352803380,1739331033008,-500.0,0.00013528,2]
[352803381,1739331033018,-505.19886801,0.00013528,2]
[352803382,1739331033028,-500.0,0.00013528,2]
[352803383,1739331033038,-500.0,0.00013528,2]
[352803384,1739331033048,-500.0,0.00013528,2]
[352803385,1739331033058,-500.0,0.00013528,2]
[352803386,1739331033068,-500.0,0.00013528,2]
[352803387,1739331033079,-500.0,0.00013528,2]
[352803388,1739331033089,-500.0,0.00013528,2]
[352803389,1739331033099,-500.0,0.00013528,2]
[352803390,1739331033109,-500.0,0.00013528,2]
[352803391,1739331033120,-503.12296061,0.00013528,2]
[352803392,1739331033131,-500.0,0.00013528,2]
[352803393,1739331033142,-500.0,0.00013528,2]
[352803394,1739331033153,-500.0,0.00013528,2]
[352803395,1739331033164,-500.0,0.00013528,2]
[352803396,1739331033174,-500.0,0.00013528,2]
[352803397,1739331033184,-500.0,0.00013528,2]
[352803398,1739331033195,-500.0,0.00013528,2]
[352803399,1739331033205,-701.26,0.00013528,2]
[352803400,1739331033215,-500.0,0.00013528,2]
[352803401,1739331033225,-502.36884868,0.00013528,2]
[352803402,1739331033236,-746.56,0.00013528,2]
[352803403,1739331033249,-500.0,0.00013528,2]
[352803404,1739331033260,-500.74560493,0.00013528,2]
[352803405,1739331033270,-601.16877411,0.00013529,2]
[352803406,1739331033280,-500.0,0.00013529,2]
[352803407,1739331033291,-500.0,0.00013529,2]
[352803408,1739331033301,-500.0,0.00013529,2]
[352803409,1739331033311,-500.0,0.00013529,2]
[352803410,1739331033321,-505.06399331,0.00013529,2]
[352803411,1739331033331,-500.0,0.00013529,2]
[352803412,1739331033341,-500.0,0.00013529,2]
[352803413,1739331033455,-500.0,0.00013529,2]
[352803414,1739331033467,-501.88298268,0.00013529,2]
[352803415,1739331033478,-500.0,0.00013529,2]
[352803416,1739331033489,-500.0,0.00013529,2]
[352803417,1739331033499,-648.7,0.00013529,2]
[352803418,1739331033509,-648.7,0.00013529,2]
[352803419,1739331033519,-500.0,0.00013529,2]
[352803420,1739331033530,-500.0,0.00013529,2]
[352803421,1739331033541,-500.0,0.00013529,2]
[352803422,1739331033551,-500.0,0.00013529,2]
[352803423,1739331033560,-502.20336998,0.00013529,2]
[352803424,1739331033571,-500.87915916,0.00013529,2]
[352803425,1739331033581,-500.0,0.00013529,2]
[352803426,1739331033591,-500.0,0.00013529,2]
[352803427,1739331033602,-500.0,0.00013529,2]
[352803428,1739331033612,-355.71168168,0.00013529,2]
[352803429,1739331033622,-501.82757179,0.00013529,2]
[352803430,1739331033632,-500.0,0.00013529,2]
[352803431,1739331033642,-500.0,0.00013529,2]
[352803432,1739331033652,-626.76,0.00013529,2]
[352803433,1739331033662,-626.76,0.00013529,2]
[352803434,1739331033671,-500.0,0.00013529,2]
[352803435,1739331033681,-500.0,0.00013529,2]
[352803436,1739331033692,-550.35107339,0.00013529,2]
[352803437,1739331033702,-500.0,0.00013529,2]
[352803438,1739331033712,-500.0,0.00013529,2]
[352803439,1739331033721,-500.59331312,0.00013529,2]
[352803440,1739331033731,-500.0,0.00013529,2]
[352803441,1739331033743,-500.0,0.00013529,2]
[352803442,1739331033753,-500.0,0.00013529,2]
[352803443,1739331033764,-500.0,0.00013529,2]
[352803444,1739331033774,-500.0,0.00013529,2]
[352803445,1739331033784,-512.33761582,0.00013529,2]
[352803446,1739331033794,-500.0,0.00013529,2]
[352803447,1739331033804,-500.0,0.00013529,2]
[352803448,1739331033813,-500.0,0.00013529,2]
[352803449,1739331033823,-501.51129482,0.00013529,2]
[352803450,1739331033833,-501.6968216,0.00013529,2]
[352803451,1739331033844,-501.47393171,0.00013529,2]
[352803452,1739331033854,-502.22587121,0.00013529,2]
[352803453,1739331033864,-500.0,0.00013529,2]
[352803454,1739331033874,-500.0,0.00013529,2]
[352803455,1739331033884,-519.8919261,0.00013529,2]
[352803456,1739331033894,-500.0,0.00013529,2]
[352803457,1739331033904,-500.0,0.00013529,2]
[352803458,1739331033915,-500.0,0.00013529,2]
[352803459,1739331033925,-500.0,0.00013529,2]
[352803460,1739331033936,-500.0,0.00013529,2]
[352803461,1739331033946,-500.96235909,0.00013529,2]
[352803462,1739331033957,-502.90028345,0.00013529,2]
[352803463,1739331033968,-500.0,0.00013529,2]
[352803464,1739331033979,-502.85180875,0.00013529,2]
[352803465,1739331033989,-501.08916711,0.00013529,2]
[352803466,1739331034000,-501.40253662,0.00013529,2]
[352803467,1739331034010,-500.0,0.00013529,2]
[352803468,1739331034020,-500.0,0.00013529,2]
[352803469,1739331034030,-500.6354735,0.00013529,2]
[352803470,1739331034040,-500.0,0.00013529,2]
[352803471,1739331034050,-501.44212782,0.00013529,2]
[352803472,1739331034060,-500.0,0.00013529,2]
[352803473,1739331034070,-501.08813691,0.00013529,2]
[352803474,1739331034080,-500.0,0.00013529,2]
[352803475,1739331034090,-649.27945168,0.00013529,2]
[352803476,1739331034100,-500.0,0.00013529,2]
[352803477,1739331034110,-501.2215882,0.00013529,2]
[352803478,1739331034120,-500.19845841,0.00013529,2]
[352803479,1739331034130,-501.10373313,0.00013529,2]
[352803480,1739331034139,-500.0,0.00013529,2]
[352803481,1739331034149,-500.0,0.00013529,2]
[352803482,1739331034159,-500.0,0.00013529,2]
[352803483,1739331034170,-500.0,0.00013529,2]
[352803484,1739331034180,-501.48436006,0.00013529,2]
[352803485,1739331034191,-500.0,0.00013529,2]
[352803486,1739331034202,-501.73076328,0.00013529,2]
[352803487,1739331034212,-500.0,0.00013529,2]
[352803488,1739331034222,-501.17968735,0.00013529,2]
[352803489,1739331034232,-500.0,0.00013529,2]
[352803490,1739331034244,-502.38596039,0.00013529,2]
[352803491,1739331034254,-500.0,0.00013529,2]
[352803492,1739331034264,-500.0,0.00013529,2]
[352803493,1739331034274,-500.0,0.00013529,2]
[352803494,1739331034285,-500.0,0.00013529,2]
[352803495,1739331034294,-542.30649184,0.00013529,2]
[352803496,1739331034304,-501.64176564,0.00013529,2]
[352803497,1739331034314,-502.61230507,0.00013529,2]
[352803498,1739331034324,-501.85919375,0.00013529,2]
[352803499,1739331034335,-500.69922645,0.00013529,2]
[352803500,1739331034344,-501.61975155,0.00013529,2]
[352803501,1739331034354,-500.0,0.00013529,2]
[352803502,1739331034364,-501.48150016,0.00013529,2]
[352803503,1739331034375,-5742.12,0.00013529,2]
[352803504,1739331034385,-500.0,0.00013529,2]
[352803505,1739331034396,-500.0,0.00013529,2]
[352803506,1739331034406,-500.0,0.00013529,2]
[352803507,1739331034416,-500.65606626,0.00013529,2]
[352803508,1739331034426,-529.4575679,0.00013529,2]
[352803509,1739331034436,-5801.44,0.00013529,2]
[352803510,1739331034448,-500.0,0.00013529,2]
[352803511,1739331034460,-501.67174479,0.00013529,2]
[352803512,1739331034469,-500.0,0.00013529,2]
[352803513,1739331034479,-500.0,0.00013529,2]
[352803514,1739331034491,-500.0,0.00013529,2]
[352803515,1739331034500,-502.18735016,0.00013529,2]
[352803516,1739331034511,-500.0,0.00013529,2]
[352803517,1739331034522,-500.0,0.00013529,2]
[352803518,1739331034532,-500.95816704,0.00013529,2]
[352803519,1739331034543,-500.0,0.00013529,2]
[352803520,1739331034552,-500.0,0.00013529,2]
[352803521,1739331034562,-500.0,0.00013529,2]
[352803522,1739331034573,-500.0,0.00013529,2]
[352803523,1739331034583,-522.13631513,0.00013529,2]
[352803524,1739331034593,-500.67917765,0.00013529,2]
[352803525,1739331034603,-500.62851582,0.00013529,2]
[352803526,1739331034612,-500.0,0.00013529,2]
[352803527,1739331034622,-501.01416019,0.00013529,2]
[352803528,1739331034631,-500.0,0.00013529,2]
[352803529,1739331034641,-500.73349766,0.00013529,2]
[352803530,1739331034650,-500.0,0.00013529,2]
[352803531,1739331034660,-502.09113725,0.00013529,2]
[352803532,1739331034670,-500.0,0.00013529,2]
[352803533,1739331034679,-501.65160757,0.00013529,2]
[352803534,1739331034689,-501.31709527,0.00013529,2]
[352803535,1739331034699,-500.92966199,0.00013529,2]
[352803536,1739331034710,-500.44513233,0.00013529,2]
[352803537,1739331034720,-503.95797112,0.00013529,2]
[352803538,1739331034730,-500.0,0.00013529,2]
[352803539,1739331034741,-2192.67,0.00013529,2]
[352803540,1739331034751,-500.53673085,0.00013529,2]
[352803541,1739331034761,-500.0,0.00013529,2]
[352803542,1739331034770,-501.42286503,0.00013529,2]
[352803543,1739331034780,-500.0,0.00013529,2]
[352803544,1739331034790,-500.0,0.00013529,2]
[352803545,1739331034800,-500.0,0.00013529,2]
[352803546,1739331034810,-500.0,0.00013529,2]
[352803547,1739331034819,-500.8496777,0.00013529,2]
[352803548,1739331034829,-500.0,0.00013529,2]
[352803549,1739331034839,-501.24815311,0.00013529,2]
[352803550,1739331034848,-500.0,0.00013529,2]
[352803551,1739331034858,-8513.71,0.00013529,2]
[352803552,1739331034869,-8513.71,0.00013529,2]
[352803553,1739331034879,-8513.71,0.00013529,2]
[352803554,1739331034888,-8513.71,0.00013529,2]
[352803555,1739331034899,-8513.71,0.00013529,2]
[352803556,1739331034909,-8513.71,0.00013529,2]
[352803557,1739331034919,-8513.71,0.00013529,2]
[352803558,1739331034929,-8513.71,0.00013529,2]
[352803559,1739331034940,-8513.71,0.00013529,2]
[352803560,1739331034950,-500.0,0.00013529,2]
[352803561,1739331034960,-500.0,0.00013529,2]
[352803562,1739331034970,-500.0,0.00013529,2]
[352803563,1739331034979,-500.55623095,0.00013529,2]
[352803564,1739331034988,-500.0,0.00013529,2]
[352803565,1739331034999,-153.036963,0.00013529,2]
[352803566,1739331035010,-151.0,0.00013529,2]
[352803567,1739331035020,-151.0,0.00013529,2]
[352803568,1739331035030,-151.0,0.00013529,2]
[352803569,1739331035039,-500.0,0.00013529,2]
[352803570,1739331035049,-151.0,0.00013529,2]
[352803571,1739331035059,-151.0,0.00013529,2]
[352803572,1739331035069,-151.0,0.00013529,2]
[352803573,1739331035079,-500.0,0.00013529,2]
[352803574,1739331035090,-500.0,0.00013529,2]
[352803575,1739331035100,-500.0,0.00013529,2]
[352803576,1739331035110,-500.0,0.00013529,2]
[352803577,1739331035121,-500.0,0.00013529,2]
[352803578,1739331035131,-500.0,0.00013529,2]
[352803579,1739331035140,-500.0,0.00013529,2]
[352803580,1739331035150,-501.18232424,0.00013529,2]
[352803581,1739331035161,-500.0,0.00013529,2]
[352803582,1739331035170,-500.0,0.00013529,2]
[352803583,1739331035180,-154.142809,0.00013529,2]
[352803584,1739331035191,-151.0,0.00013529,2]
[352803585,1739331035200,-500.0,0.00013529,2]
[352803586,1739331035210,-500.0,0.00013529,2]
[352803587,1739331035220,-346.59038442,0.00013529,2]
[352803588,1739331035230,-500.0,0.00013529,2]
[352803589,1739331035241,-503.48371161,0.0001353,2]
[352803590,1739331035251,-500.0,0.0001353,2]
[352803591,1739331035260,-505.39028804,0.0001353,2]
[352803592,1739331035270,-500.0,0.0001353,2]
[352803593,1739331035279,-386.98733038,0.0001353,2]
[352803594,1739331035289,-501.57753308,0.0001353,2]
[352803595,1739331035299,-500.0,0.0001353,2]
[352803596,1739331035308,-500.0,0.0001353,2]
[352803597,1739331035318,-503.76898428,0.0001353,2]
[352803598,1739331035328,-500.65077592,0.0001353,2]
[352803599,1739331035338,-544.21384443,0.0001353,2]
[352803600,1739331035348,-500.0,0.0001353,2]
[352803601,1739331035358,-500.0,0.0001353,2]
[352803602,1739331035368,-500.94040951,0.0001353,2]
[352803603,1739331035377,-500.88919024,0.0001353,2]
[352803604,1739331035387,-500.0,0.0001353,2]
[352803605,1739331035396,-500.0,0.0001353,2]
[352803606,1739331035406,-500.0,0.0001353,2]
[352803607,1739331035415,-500.73468322,0.0001353,2]
[352803608,1739331035425,-502.41280929,0.0001353,2]
[352803609,1739331035435,-500.0,0.0001353,2]
[352803610,1739331035447,-501.31423069,0.0001353,2]
[352803611,1739331035459,-505.32593033,0.0001353,2]
[352803612,1739331035468,-501.33091528,0.0001353,2]
[352803613,1739331035478,-501.75186166,0.0001353,2]
[352803614,1739331035489,-501.17695131,0.0001353,2]
[352803615,1739331035499,-500.0,0.0001353,2]
[352803616,1739331035509,-504.80413431,0.0001353,2]
[352803617,1739331035518,-505.76388323,0.0001353,2]
[352803618,1739331035530,-500.0,0.0001353,2]
[352803619,1739331035540,-501.69581423,0.0001353,2]
[352803620,1739331035549,-500.0,0.0001353,2]
[352803621,1739331035559,-500.0,0.0001353,2]
[352803622,1739331035569,-500.0,0.0001353,2]
[352803623,1739331035579,-502.41587115,0.0001353,2]
[352803624,1739331035686,-500.0,0.0001353,2]
[352803625,1739331035696,-500.0,0.0001353,2]
[352803626,1739331035706,-500.0,0.0001353,2]
[352803627,1739331035716,-500.0,0.0001353,2]
[352803628,1739331035726,-500.0,0.0001353,2]
[352803629,1739331035736,-504.64790717,0.0001353,2]
[352803630,1739331035747,-503.78047021,0.0001353,2]
[352803631,1739331035756,-500.0,0.0001353,2]
[352803632,1739331035766,-500.0,0.0001353,2]
[352803633,1739331035775,-500.0,0.0001353,2]
[352803634,1739331035784,-500.0,0.0001353,2]
[352803635,1739331035794,-500.0,0.0001353,2]
[352803636,1739331035804,-500.0,0.0001353,2]
[352803637,1739331035814,-500.0,0.0001353,2]
[352803638,1739331035823,-500.0,0.0001353,2]
[352803639,1739331035833,-500.0,0.0001353,2]
[352803640,1739331035843,-500.0,0.0001353,2]
[352803641,1739331035853,-500.0,0.0001353,2]
[352803642,1739331035863,-500.0,0.0001353,2]
[352803643,1739331035873,-500.0,0.0001353,2]
[352803644,1739331035883,-500.0,0.0001353,2]
[352803645,1739331035893,-500.0,0.0001353,2]
[352803646,1739331035903,-502.49257896,0.0001353,2]
[352803647,1739331035913,-500.0,0.0001353,2]
[352803648,1739331035923,-500.0,0.0001353,2]
[352803649,1739331035933,-500.0,0.0001353,2]
[352803650,1739331035943,-500.0,0.0001353,2]
[352803651,1739331035952,-501.62921188,0.0001353,2]
[352803652,1739331035962,-500.0,0.0001353,2]
[352803653,1739331035972,-500.0,0.0001353,2]
[352803654,1739331035983,-502.23493371,0.0001353,2]
[352803655,1739331035992,-500.0,0.0001353,2]
[352803656,1739331036002,-500.0,0.0001353,2]
[352803657,1739331036012,-500.0,0.0001353,2]
[352803658,1739331036022,-501.66930536,0.0001353,2]
[352803659,1739331036031,-500.0,0.0001353,2]
[352803660,1739331036041,-500.0,0.0001353,2]
[352803661,1739331036050,-500.0,0.0001353,2]